bitfinex/quotes_SOLUSD_20220208
["timestamp","ask_amount","ask_price","bid_price","bid_amount"]
[1644326434027,1.25380002,112.27,112.17,49.61400438]
[1644326434227,1.25380002,112.27,112.17,49.86400438]
[1644326434428,1.25380002,112.29,112.19,37.93720426]
[1644326434630,24.04450002,112.3,112.2,0.024]
[1644326435031,2.10775549,112.29,112.21,41.84503293]
[1644326435228,2.10775549,112.29,112.22,0.024]
[1644326435628,0.25,112.29,112.22,0.024]
[1644326435828,24.04450002,112.3,112.22,10.944]
[1644326436029,25.14845549,112.3,112.23,43.20661494]
[1644326436329,25.14845549,112.3,112.23,43.23061494]
[1644326436529,26.40225551,112.3,112.23,43.23061494]
[1644326436731,3.61155551,112.3,112.23,43.23061494]
[1644326437832,4.75770188,112.29,112.17,4.453]
[1644326438031,1.25380002,112.27,112.12,4.454]
[1644326438233,5.70980002,112.26,112.09,47.8126]
[1644326438431,23.1219,112.25,112.11,12.79]
[1644326438637,23.1219,112.25,112.12,42.06424777]
[1644326438832,41.57358586,112.25,112.13,12.79]
[1644326439031,2.10775549,112.24,112.14,36.58892336]
[1644326439334,13.3788,112.23,112.14,36.58892336]
[1644326439732,2.10775549,112.22,112.14,36.58892336]
[1644326440236,2.35775549,112.22,112.14,36.58892336]
[1644326441833,1.25380002,112.24,112.14,36.58892336]
[1644326442034,1.25380002,112.24,112.14,62.45098955]
[1644326442239,1.25380002,112.25,112.14,60.79092336]
[1644326442435,24.93690002,112.27,112.14,60.79092336]
[1644326442634,1.25380002,112.27,112.14,66.79092336]
[1644326442837,1.25380002,112.26,112.15,4.456]
[1644326443034,1.25380002,112.27,112.16,52.83767127]
[1644326443235,1.25380002,112.28,112.18,88.60858423]
[1644326443436,1.25380002,112.29,112.19,12.79]
[1644326443635,1.25380002,112.3,112.2,41.71197821]
[1644326443835,1.25380002,112.3,112.21,12.79]
[1644326444035,1.25380002,112.31,112.22,38.23839856]
[1644326444235,1.25380002,112.31,112.22,51.27839856]
[1644326444834,1.25380002,112.31,112.22,64.64249856]
[1644326445439,1.50380002,112.31,112.22,64.64249856]
[1644326446536,1.25380002,112.3,112.22,64.39249856]
[1644326447138,3.36155551,112.3,112.22,51.02839856]
[1644326447539,16.72915551,112.3,112.22,51.02839856]
[1644326447739,16.72915551,112.3,112.22,38.23839856]
[1644326447740,1.25380002,112.29,112.22,38.23839856]
[1644326448149,2.10775549,112.28,112.22,38.23839856]
[1644326448740,2.35775549,112.28,112.22,38.23839856]
[1644326449843,15.72695549,112.28,112.22,38.23839856]
[1644326451542,2.10775549,112.27,112.22,38.23839856]
[1644326451941,21.18325551,112.3,112.22,38.23839856]
[1644326452162,14.62150002,112.3,112.22,47.67439856]
[1644326452341,1.25380002,112.3,112.22,47.67439856]
[1644326452543,1.25380002,112.31,112.22,47.67439856]
[1644326452941,3.36155551,112.31,112.22,47.67439856]
[1644326453145,3.61155551,112.31,112.22,47.67439856]
[1644326453445,16.97705551,112.31,112.22,38.23839856]
[1644326453641,21.43005551,112.31,112.23,0.024]
[1644326454845,16.97705551,112.31,112.23,0.024]
[1644326459049,1.25380002,112.3,112.23,0.024]
[1644326459251,1.25380002,112.3,112.22,38.26239856]
[1644326459551,3.36155551,112.3,112.22,38.26239856]
[1644326460549,2.10775549,112.3,112.22,38.26239856]
[1644326460750,3.36155551,112.3,112.22,51.62759856]
[1644326463359,3.61155551,112.3,112.22,51.62759856]
[1644326463560,1.25380002,112.29,112.22,51.62759856]
[1644326463958,1.25380002,112.29,112.22,38.26239856]
[1644326464359,1.25380002,112.3,112.22,38.51239856]
[1644326464557,1.25380002,112.3,112.23,0.024]
[1644326464757,1.25380002,112.3,112.22,50.86239856]
[1644326464962,1.25380002,112.31,112.23,12.79]
[1644326465258,1.25380002,112.32,112.24,48.2189472]
[1644326465459,1.25380002,112.32,112.25,12.79]
[1644326465657,1.25380002,112.32,112.26,44.33608178]
[1644326465857,1.25380002,112.33,112.26,44.33608178]
[1644326466057,1.25380002,112.33,112.26,44.58608178]
[1644326466259,1.25380002,112.33,112.26,57.94558178]
[1644326466763,1.25380002,112.33,112.26,70.73558178]
[1644326467181,1.50380002,112.33,112.26,70.73558178]
[1644326467380,1.50380002,112.33,112.26,76.73558178]
[1644326467381,0.25,112.33,112.26,76.73558178]
[1644326467882,1.50380002,112.34,112.26,76.73558178]
[1644326469680,1.50380002,112.34,112.26,70.73558178]
[1644326470181,1.25380002,112.34,112.26,125.92564797]
[1644326470381,1.25380002,112.36,112.26,131.92564797]
[1644326470586,1.25380002,112.37,112.27,4.45]
[1644326470883,1.28808652,112.38,112.31,53.28]
[1644326471081,1.25380002,112.39,112.32,61.61819666]
[1644326471283,1.25930143,112.4,112.32,115.14819666]
[1644326471488,6.23485122,112.45,112.32,121.14819666]
[1644326471683,1.25661865,112.42,112.35,53.28]
[1644326471881,1.25661865,112.42,112.37,13.3454]
[1644326472085,1.25661865,112.42,112.38,40.89889671]
[1644326472284,1.25661865,112.42,112.38,52.05389671]
[1644326472482,1.25661865,112.42,112.38,11.155]
[1644326472681,1.25661865,112.41,112.38,11.155]
[1644326472883,3.03219997,112.4,112.33,36.3862]
[1644326473083,7.32101859,112.4,112.33,12.79]
[1644326473483,1.25661865,112.4,112.34,36.06423537]
[1644326473682,1.50661865,112.42,112.35,12.79]
[1644326474083,1.50661865,112.42,112.36,42.50654154]
[1644326474283,1.50661865,112.42,112.36,55.29654154]
[1644326474483,1.50661865,112.42,112.36,55.54654154]
[1644326474687,0.25,112.42,112.36,55.54654154]
[1644326475083,1.25661865,112.43,112.36,55.29654154]
[1644326475084,1.50661865,112.43,112.36,55.29654154]
[1644326475483,1.50661865,112.43,112.36,42.50654154]
[1644326475685,1.25661865,112.42,112.36,42.50654154]
[1644326476385,1.50661865,112.43,112.36,42.50654154]
[1644326476583,1.25661865,112.43,112.36,50.98954154]
[1644326476784,1.25661865,112.43,112.36,64.02954154]
[1644326476983,1.25661865,112.44,112.36,64.02954154]
[1644326477383,1.25661865,112.44,112.36,63.77954154]
[1644326477583,1.25661865,112.45,112.36,63.77954154]
[1644326477787,16.71337414,112.44,112.36,63.77954154]
[1644326478189,16.71337414,112.44,112.36,55.29654154]
[1644326478786,15.45675549,112.44,112.36,55.29654154]
[1644326478986,15.45675549,112.44,112.36,42.50654154]
[1644326479187,16.71337414,112.44,112.36,42.50654154]
[1644326479589,15.45675549,112.44,112.36,42.50654154]
[1644326479791,13.349,112.44,112.36,42.50654154]
[1644326481393,13.599,112.44,112.36,42.50654154]
[1644326481988,13.599,112.44,112.36,42.75654154]
[1644326482188,13.599,112.44,112.36,56.10384154]
[1644326482589,0.25,112.44,112.36,56.10384154]
[1644326482790,16.71107414,112.46,112.37,12.79]
[1644326482991,16.71107414,112.46,112.37,74.759]
[1644326483191,1.25661865,112.47,112.38,44.40094318]
[1644326483491,1.25661865,112.48,112.38,70.53574318]
[1644326483896,1.25661865,112.48,112.38,76.53574318]
[1644326484090,1.25661865,112.48,112.38,76.78574318]
[1644326484290,1.50661865,112.48,112.38,76.78574318]
[1644326484492,14.85091865,112.48,112.38,130.06574318]
[1644326484790,1.25661865,112.49,112.38,131.97799547]
[1644326484993,2.49394049,112.52,112.4,53.28]
[1644326485192,2.49394049,112.52,112.43,13.3378]
[1644326485391,50.26364049,112.56,112.44,56.26397779]
[1644326485591,13.3366,112.54,112.44,62.26397779]
[1644326485793,13.3366,112.54,112.44,62.51397779]
[1644326485992,13.3366,112.54,112.44,56.51397779]
[1644326486593,0.03416871,112.53,112.44,62.51397779]
[1644326486791,0.03416871,112.53,112.45,13.3359]
[1644326486991,13.37076871,112.54,112.46,48.58612126]
[1644326487193,0.03416871,112.53,112.47,12.79]
[1644326487393,0.03416871,112.53,112.48,101.33318575]
[1644326487597,0.03416871,112.56,112.48,119.30918575]
[1644326487894,0.03416871,112.59,112.51,47.58612026]
[1644326488093,0.03416871,112.6,112.52,12.79]
[1644326488294,0.03416871,112.61,112.53,45.29797332]
[1644326488494,0.03416871,112.62,112.53,58.08797332]
[1644326488694,0.03416871,112.61,112.53,58.08797332]
[1644326488894,2.1419242,112.62,112.53,58.08797332]
[1644326489094,0.03416871,112.61,112.53,58.08797332]
[1644326489495,2.10775549,112.62,112.53,58.08797332]
[1644326489496,2.1419242,112.62,112.53,58.08797332]
[1644326489694,0.03416871,112.61,112.53,58.08797332]
[1644326489895,33.18537215,112.62,112.53,58.08797332]
[1644326490100,0.03416871,112.61,112.53,58.08797332]
[1644326490298,2.10775549,112.6,112.53,58.08797332]
[1644326490996,113.13416871,112.61,112.53,58.08797332]
[1644326492403,113.13416871,112.61,112.53,69.43297332]
[1644326493426,113.13416871,112.61,112.53,58.08797332]
[1644326494208,126.4298,112.61,112.53,58.08797332]
[1644326494405,126.46396871,112.61,112.53,58.08797332]
[1644326495310,126.71396871,112.61,112.53,58.08797332]
[1644326495710,126.6798,112.61,112.53,58.08797332]
[1644326496211,2.10775549,112.6,112.48,51.8246]
[1644326496414,2.10775549,112.6,112.47,12.79]
[1644326496415,13.3342,112.57,112.47,12.79]
[1644326496814,0.03416871,112.56,112.47,12.79]
[1644326497213,0.03416871,112.56,112.48,47.34538919]
[1644326497518,13.36836871,112.57,112.48,47.34538919]
[1644326497716,13.3342,112.57,112.48,47.34538919]
[1644326498113,13.36836871,112.57,112.48,47.34538919]
[1644326498313,13.3342,112.57,112.48,47.34538919]
[1644326498715,13.5842,112.57,112.48,47.34538919]
[1644326499514,13.5842,112.57,112.48,60.13538919]
[1644326501228,18.0262,112.57,112.48,60.13538919]
[1644326502931,17.7762,112.57,112.48,60.13538919]
[1644326503732,17.7762,112.57,112.48,47.34538919]
[1644326503931,17.81036871,112.57,112.48,47.34538919]
[1644326504131,20.3043092,112.57,112.48,47.34538919]
[1644326504330,20.5543092,112.57,112.48,47.34538919]
[1644326504531,16.1123092,112.57,112.48,47.34538919]
[1644326504936,13.61836871,112.57,112.48,47.34538919]
[1644326506037,15.7261242,112.57,112.48,47.34538919]
[1644326506236,22.66206469,112.57,112.48,47.34538919]
[1644326506437,5.00056446,112.56,112.48,47.34538919]
[1644326506651,13.3376,112.54,112.48,47.34538919]
[1644326509541,15.83154049,112.54,112.48,47.34538919]
[1644326510240,16.08154049,112.54,112.48,47.34538919]
[1644326511441,15.83154049,112.54,112.48,47.34538919]
[1644326512640,5.01231684,112.53,112.48,47.34538919]
[1644326512840,18.35161684,112.53,112.48,47.34538919]
[1644326513043,18.35161684,112.53,112.43,26.128]
[1644326513242,0.03416871,112.52,112.43,12.79]
[1644326513743,2.5281092,112.52,112.43,12.79]
[1644326514143,2.5281092,112.52,112.44,47.04468877]
[1644326514545,15.83574049,112.51,112.39,17.7877]
[1644326514745,0.03416871,112.5,112.4,12.79]
[1644326514944,5.05086195,112.5,112.37,12.79]
[1644326515143,2.49394049,112.49,112.37,12.79]
[1644326515344,0.03416871,112.48,112.37,12.79]
[1644326515546,0.03416871,112.48,112.38,47.7288152]
[1644326516643,2.5281092,112.48,112.38,47.7288152]
[1644326516845,13.38026871,112.47,112.38,47.7288152]
[1644326517645,13.63026871,112.47,112.38,47.7288152]
[1644326518049,4.447,112.46,112.38,47.7288152]
[1644326518245,13.3535,112.44,112.38,47.7288152]
[1644326518446,13.3535,112.44,112.33,12.79]
[1644326519047,13.3535,112.44,112.33,13.04]
[1644326519251,13.3535,112.44,112.33,14.93856335]
[1644326519449,13.3535,112.44,112.34,42.67874956]
[1644326519645,13.3535,112.44,112.35,12.79]
[1644326519845,13.3535,112.44,112.36,44.27213064]
[1644326520249,13.3535,112.44,112.36,44.52213064]
[1644326520548,13.347,112.46,112.36,65.76769399]
[1644326520747,13.347,112.46,112.36,59.76769399]
[1644326520947,13.347,112.46,112.36,78.55769399]
[1644326521347,13.597,112.46,112.36,78.55769399]
[1644326521751,13.597,112.46,112.36,72.55769399]
[1644326521952,13.597,112.46,112.36,78.55769399]
[1644326522555,13.63116871,112.46,112.36,78.55769399]
[1644326522758,0.25,112.46,112.36,131.83769399]
[1644326522957,0.25,112.46,112.36,143.10769399]
[1644326523262,0.03416871,112.47,112.36,143.10769399]
[1644326523457,0.03416871,112.47,112.36,156.32022929]
[1644326523657,0.03416871,112.47,112.4,66.6205]
[1644326523855,0.03416871,112.48,112.41,58.35714206]
[1644326524055,0.03416871,112.5,112.41,119.53570541]
[1644326524256,0.03416871,112.5,112.41,119.78570541]
[1644326524857,0.03416871,112.51,112.41,119.78570541]
[1644326525861,0.03416871,112.51,112.44,48.06246524]
[1644326526059,16.08354049,112.52,112.44,48.06246524]
[1644326526460,5.01532172,112.51,112.44,48.06246524]
[1644326527460,16.08354049,112.52,112.44,48.06246524]
[1644326528261,7.12370809,112.51,112.44,48.06246524]
[1644326528463,13.3419,112.49,112.44,48.06246524]
[1644326529062,13.5919,112.49,112.44,48.06246524]
[1644326529663,0.25,112.49,112.44,48.06246524]
[1644326529862,0.03416871,112.51,112.44,48.06246524]
[1644326530062,2.49394049,112.52,112.44,76.71646524]
[1644326530464,0.03416871,112.52,112.44,131.89502859]
[1644326530663,2.52218997,112.56,112.45,62.0]
[1644326530865,0.03473726,112.52,112.47,101.43300757]
[1644326531067,0.03473726,112.52,112.47,107.43300757]
[1644326531264,0.03473726,112.56,112.48,12.79]
[1644326531464,0.03473726,112.55,112.49,34.40744406]
[1644326531666,0.03473726,112.58,112.49,47.19744406]
[1644326531864,2.55692723,112.58,112.49,60.77784406]
[1644326532262,2.55692723,112.58,112.49,66.77784406]
[1644326532864,2.80692723,112.58,112.49,66.77784406]
[1644326533065,2.52218997,112.57,112.49,120.05784406]
[1644326533266,2.55692723,112.58,112.49,120.05784406]
[1644326534366,0.03473726,112.58,112.49,120.05784406]
[1644326534567,2.80291792,112.58,112.49,120.05784406]
[1644326534785,0.28473726,112.58,112.49,120.05784406]
[1644326534986,0.28473726,112.58,112.49,66.77784406]
[1644326534987,13.61593726,112.58,112.49,66.77784406]
[1644326535185,13.61593726,112.58,112.49,47.19744406]
[1644326535186,15.68895549,112.58,112.49,47.19744406]
[1644326535486,2.51853431,112.57,112.49,47.19744406]
[1644326535684,2.55327157,112.57,112.49,34.17063604]
[1644326536094,13.3357,112.55,112.49,34.17063604]
[1644326536487,2.10775549,112.54,112.49,34.17063604]
[1644326536685,6.54975549,112.54,112.49,34.17063604]
[1644326537085,4.442,112.54,112.49,34.17063604]
[1644326537785,4.442,112.54,112.43,12.79]
[1644326537786,13.3396,112.53,112.43,12.79]
[1644326537993,13.3396,112.53,112.42,150.625]
[1644326537994,15.48209275,112.53,112.42,150.625]
[1644326538191,0.03473726,112.52,112.42,73.3894]
[1644326538387,4.47973726,112.52,112.42,73.3894]
[1644326538593,6.99912558,112.52,112.41,24.8915]
[1644326538789,4.445,112.51,112.42,40.55030267]
[1644326539389,13.3418,112.49,112.42,40.55030267]
[1644326541396,15.44955549,112.49,112.42,40.55030267]
[1644326541996,4.446,112.48,112.42,40.55030267]
[1644326542198,13.3461,112.47,112.42,40.55030267]
[1644326542899,0.03473726,112.5,112.42,40.55030267]
[1644326543099,0.03473726,112.51,112.42,40.55030267]
[1644326543303,13.3426,112.49,112.42,40.55030267]
[1644326544203,13.5926,112.49,112.42,40.55030267]
[1644326544806,13.3426,112.49,112.42,40.55030267]
[1644326546210,13.5926,112.49,112.42,40.55030267]
[1644326547212,13.3426,112.49,112.42,40.55030267]
[1644326548812,13.5926,112.49,112.42,40.55030267]
[1644326549610,15.70035549,112.49,112.42,40.55030267]
[1644326550411,13.5926,112.49,112.42,40.55030267]
[1644326551014,15.70035549,112.49,112.42,40.55030267]
[1644326551417,13.5926,112.49,112.42,40.55030267]
[1644326552214,13.3426,112.49,112.42,40.55030267]
[1644326556019,13.5926,112.49,112.42,40.55030267]
[1644326556821,13.3426,112.49,112.42,40.55030267]
[1644326558122,13.5926,112.49,112.42,40.55030267]
[1644326560025,2.10775549,112.48,112.42,40.55030267]
[1644326560730,15.45075549,112.48,112.42,40.55030267]
[1644326561352,13.343,112.48,112.42,40.55030267]
[1644326561851,15.45075549,112.48,112.42,40.55030267]
[1644326562054,15.45075549,112.48,112.42,40.80030267]
[1644326562055,2.10775549,112.48,112.42,40.80030267]
[1644326562253,0.03473726,112.51,112.42,106.87030267]
[1644326562453,2.5602498,112.53,112.42,124.02127141]
[1644326562653,0.03473726,112.52,112.42,124.02127141]
[1644326563052,0.03473726,112.52,112.42,137.36057141]
[1644326563253,2.5602498,112.52,112.42,137.36057141]
[1644326563453,2.52551254,112.52,112.42,135.43560267]
[1644326563657,0.03473726,112.52,112.42,135.43560267]
[1644326563856,2.52551254,112.51,112.42,135.43560267]
[1644326564056,2.52551254,112.52,112.42,135.43560267]
[1644326564257,0.03473726,112.52,112.42,135.43560267]
[1644326565854,13.37223726,112.52,112.42,135.43560267]
[1644326566055,2.52551254,112.51,112.42,135.43560267]
[1644326566256,2.52551254,112.51,112.42,148.92100267]
[1644326568160,2.77551254,112.51,112.42,148.92100267]
[1644326568460,2.52551254,112.5,112.42,148.92100267]
[1644326568860,2.52551254,112.5,112.42,95.64100267]
[1644326569058,2.52551254,112.5,112.42,80.41500267]
[1644326570658,2.52551254,112.5,112.42,86.41500267]
[1644326572460,2.52551254,112.5,112.42,139.69500267]
[1644326572660,2.52551254,112.5,112.42,72.92960267]
[1644326572861,15.86521254,112.5,112.42,66.92960267]
[1644326573061,13.3397,112.5,112.42,66.92960267]
[1644326573463,13.3397,112.5,112.42,53.34030267]
[1644326573661,15.44745549,112.5,112.42,40.55030267]
[1644326573860,2.53178825,112.49,112.42,40.55030267]
[1644326574861,13.3427,112.48,112.42,40.55030267]
[1644326575662,0.25,112.49,112.42,40.55030267]
[1644326575863,0.25,112.49,112.42,46.55030267]
[1644326576064,0.25,112.49,112.42,46.80030267]
[1644326576362,0.25,112.49,112.42,40.55030267]
[1644326576564,2.53161294,112.48,112.42,40.55030267]
[1644326576965,15.87301294,112.49,112.42,40.55030267]
[1644326577164,2.53161294,112.48,112.42,40.55030267]
[1644326577662,2.53161294,112.49,112.42,40.55030267]
[1644326577867,15.87231294,112.49,112.42,40.55030267]
[1644326578064,13.3407,112.49,112.42,40.55030267]
[1644326578863,2.53145376,112.48,112.42,40.55030267]
[1644326579863,2.53145376,112.48,112.42,54.14010267]
[1644326580065,2.53145376,112.49,112.42,53.89010267]
[1644326581269,2.78145376,112.49,112.42,53.89010267]
[1644326581467,0.25,112.49,112.42,53.89010267]
[1644326581666,23.4765,112.5,112.42,53.89010267]
[1644326581868,13.3403,112.49,112.42,54.14010267]
[1644326582668,48.21081073,112.52,112.42,54.14010267]
[1644326582669,3.74091073,112.52,112.44,46.49762536]
[1644326582871,2.5304144,112.52,112.44,59.83542536]
[1644326583169,2.56515166,112.53,112.46,39.45680823]
[1644326583375,2.5304144,112.51,112.46,39.45680823]
[1644326583569,2.56515166,112.53,112.46,39.45680823]
[1644326583767,13.3368,112.52,112.46,39.45680823]
[1644326583970,2.5304144,112.51,112.46,39.45680823]
[1644326585670,13.5868,112.52,112.46,39.45680823]
[1644326586171,0.25,112.52,112.46,52.79260823]
[1644326586872,13.3356,112.53,112.46,52.79260823]
[1644326587195,2.52917253,112.52,112.46,52.79260823]
[1644326588676,15.86607253,112.52,112.46,39.45680823]
[1644326588878,13.3369,112.52,112.46,39.45680823]
[1644326589076,13.3369,112.52,112.43,24.0398]
[1644326589077,13.3369,112.52,112.43,36.8298]
[1644326589275,2.52931889,112.51,112.43,36.8298]
[1644326589677,2.52931889,112.52,112.43,36.8298]
[1644326589980,2.52931889,112.52,112.44,35.56249459]
[1644326590380,2.77931889,112.52,112.44,35.56249459]
[1644326590578,2.52931889,112.51,112.44,35.56249459]
[1644326590778,13.3401,112.49,112.44,35.56249459]
[1644326591380,72.52411073,112.53,112.44,35.56249459]
[1644326591778,2.53014709,112.52,112.44,35.56249459]
[1644326592181,13.3392,112.5,112.41,24.1252]
[1644326592379,13.3392,112.5,112.39,22.5464]
[1644326592584,4.63790258,112.49,112.39,22.5464]
[1644326592779,47.8093,112.5,112.39,22.5464]
[1644326593180,2.53042154,112.49,112.4,41.87233279]
[1644326593781,13.3426,112.47,112.4,55.21493279]
[1644326597808,13.5926,112.47,112.4,55.21493279]
[1644326598009,13.3414,112.48,112.4,55.21493279]
[1644326598208,47.8093,112.5,112.4,114.74493279]
[1644326598413,47.8093,112.5,112.41,12.79]
[1644326598607,47.8093,112.5,112.42,55.54479158]
[1644326599107,2.52948296,112.49,112.42,55.54479158]
[1644326599307,47.8093,112.5,112.42,55.54479158]
[1644326599506,0.25,112.49,112.42,55.54479158]
[1644326599707,13.3399,112.49,112.42,55.54479158]
[1644326601712,13.3399,112.49,112.42,42.20439158]
[1644326602013,15.44765549,112.49,112.42,42.20439158]
[1644326602210,13.3445,112.47,112.42,42.20439158]
[1644326605211,1.26484002,112.45,112.42,42.20439158]
[1644326605611,6.06439994,112.44,112.42,42.20439158]
[1644326606013,6.06439994,112.44,112.39,26.1341]
[1644326606713,14.60944002,112.45,112.39,26.1341]
[1644326606914,1.26484002,112.44,112.39,48.81394342]
[1644326607312,1.26484002,112.44,112.35,12.79]
[1644326607513,4.447,112.45,112.34,123.7256]
[1644326607514,1.26484002,112.43,112.34,123.7256]
[1644326607715,1.26484002,112.42,112.34,47.2556]
[1644326608012,13.3496,112.41,112.34,73.3956]
[1644326608212,13.3496,112.41,112.35,36.3624208]
[1644326610213,14.61334002,112.42,112.35,49.9609208]
[1644326610414,1.26484002,112.43,112.35,123.94902009]
[1644326610613,1.26484002,112.45,112.35,128.39702009]
[1644326611714,14.60994002,112.45,112.35,128.39702009]
[1644326611914,4.002e-05,112.45,112.35,138.53713699]
[1644326612114,12.34804002,112.46,112.4,41.704119]
[1644326612315,12.348,112.46,112.42,48.53719703]
[1644326612514,12.348,112.46,112.43,12.79]
[1644326612713,12.348,112.46,112.44,42.57742548]
[1644326614614,12.348,112.46,112.44,55.91602548]
[1644326614815,13.338,112.51,112.44,56.16602548]
[1644326615215,13.338,112.51,112.44,55.91602548]
[1644326616221,13.588,112.51,112.44,55.91602548]
[1644326621719,13.588,112.51,112.44,56.16602548]
[1644326621919,13.588,112.51,112.44,55.91602548]
[1644326622722,13.588,112.51,112.44,42.57742548]
[1644326623124,13.588,112.51,112.42,12.79]
[1644326623325,18.033,112.51,112.42,12.79]
[1644326623827,17.783,112.51,112.43,1.9180199]
[1644326624027,2.52445699,112.52,112.44,12.79]
[1644326624028,13.337,112.52,112.44,12.79]
[1644326624227,2.55919425,112.54,112.45,53.28]
[1644326624425,2.52445699,112.55,112.46,12.79]
[1644326624624,0.03473726,112.55,112.46,72.07]
[1644326624822,0.03473726,112.55,112.46,107.50025465]
[1644326625025,2.52445699,112.57,112.46,107.50025465]
[1644326625026,28.55539986,112.57,112.46,107.50025465]
[1644326625225,0.03473726,112.56,112.46,107.50025465]
[1644326625524,0.03473726,112.56,112.49,53.28]
[1644326625726,0.03473726,112.58,112.5,66.07]
[1644326625928,5.0818107,112.6,112.51,34.94434653]
[1644326626127,0.03473726,112.58,112.53,48.74964455]
[1644326626329,0.03473726,112.61,112.55,39.01085465]
[1644326626528,0.03473726,112.62,112.55,52.33575465]
[1644326626726,17.35570344,112.63,112.55,58.33575465]
[1644326626925,17.35570344,112.63,112.55,39.01085465]
[1644326627325,15.85075699,112.63,112.55,39.01085465]
[1644326627725,15.85075699,112.63,112.55,45.01085465]
[1644326627925,2.55919425,112.64,112.55,45.01085465]
[1644326628126,0.03473726,112.64,112.55,111.33085465]
[1644326628326,6.65514198,112.64,112.55,52.05085465]
[1644326628530,0.03473726,112.64,112.55,51.80085465]
[1644326628726,0.03473726,112.64,112.55,57.80085465]
[1644326628928,0.03473726,112.64,112.55,51.80085465]
[1644326629128,0.03473726,112.65,112.55,51.80085465]
[1644326629326,4.44,112.64,112.55,51.80085465]
[1644326629626,4.47473726,112.64,112.55,51.80085465]
[1644326629828,0.28473726,112.64,112.55,51.80085465]
[1644326630226,0.03473726,112.65,112.55,51.80085465]
[1644326630827,0.03473726,112.65,112.55,117.69385465]
[1644326631431,0.03473726,112.65,112.55,123.69385465]
[1644326631828,14.95277126,112.65,112.55,64.16385465]
[1644326632026,0.03473726,112.64,112.55,51.80085465]
[1644326632231,0.03473726,112.64,112.55,52.05085465]
[1644326632428,0.03473726,112.64,112.55,58.05085465]
[1644326632829,0.03473726,112.64,112.56,53.28]
[1644326633028,0.03473726,112.64,112.58,53.28]
[1644326633230,0.03473726,112.66,112.59,12.79]
[1644326633428,0.03473726,112.68,112.61,37.12191762]
[1644326633631,0.03473726,112.68,112.61,43.12191762]
[1644326633829,13.3189,112.69,112.61,37.12191762]
[1644326634028,14.27333972,112.69,112.61,37.12191762]
[1644326634230,14.30807698,112.69,112.61,37.12191762]
[1644326634431,14.30807698,112.69,112.59,12.79]
[1644326634630,14.30807698,112.69,112.59,18.79]
[1644326634833,13.60363726,112.69,112.59,18.79]
[1644326635732,13.60363726,112.69,112.6,42.56643473]
[1644326636132,13.32275393,112.69,112.6,42.56643473]
[1644326636337,13.07275393,112.69,112.6,42.56643473]
[1644326636537,0.03473726,112.69,112.6,114.63643473]
[1644326636734,0.03473726,112.71,112.6,116.56005279]
[1644326636936,0.03473726,112.7,112.6,57.28005279]
[1644326637134,2.10775549,112.68,112.57,1.92361806]
[1644326637333,2.10775549,112.68,112.56,13.3939]
[1644326637334,14.63775549,112.68,112.56,12.79]
[1644326637535,13.3243,112.65,112.56,12.79]
[1644326637736,24.6163,112.65,112.55,9.26]
[1644326637935,2.14249275,112.64,112.55,9.26]
[1644326638235,3.30031312,112.63,112.55,9.26]
[1644326638437,3.33505038,112.63,112.55,9.26]
[1644326638635,28.22615549,112.62,112.55,9.26]
[1644326638835,4.441,112.61,112.55,9.26]
[1644326639037,19.33875549,112.61,112.55,9.26]
[1644326639239,14.89775549,112.61,112.55,9.26]
[1644326639543,2.10775549,112.61,112.55,9.26]
[1644326639939,12.82473726,112.63,112.56,43.03616283]
[1644326640239,44.4318,112.63,112.56,43.03616283]
[1644326640840,46.53955549,112.63,112.56,43.03616283]
[1644326641141,44.4318,112.63,112.56,43.03616283]
[1644326641639,13.3278,112.62,112.56,43.03616283]
[1644326642042,0.03473726,112.64,112.56,43.03616283]
[1644326642239,0.03473726,112.65,112.56,43.03616283]
[1644326642440,0.03473726,112.65,112.56,43.28616283]
[1644326642841,0.03473726,112.65,112.56,56.07616283]
[1644326643041,0.03473726,112.65,112.56,62.07616283]
[1644326643640,0.03473726,112.65,112.56,56.07616283]
[1644326644142,0.03473726,112.65,112.57,1.91908015]
[1644326644344,0.03473726,112.67,112.58,53.28]
[1644326644541,0.03473726,112.67,112.59,66.07]
[1644326644751,0.03473726,112.68,112.59,72.67808015]
[1644326644944,0.03473726,112.71,112.59,74.23908015]
[1644326645143,0.03473726,112.72,112.6,88.6326971]
[1644326645341,13.35253726,112.7,112.61,12.79]
[1644326645543,28.49022697,112.7,112.62,45.03605869]
[1644326645743,28.49022697,112.7,112.56,77.4222]
[1644326645744,0.03473726,112.69,112.56,12.79]
[1644326645946,2.14249275,112.69,112.56,12.79]